Cogmind - Beta 10.1 @@@ ROGUE MODE // 2020.10.26 @ 15:46:22 Player: derk Result: Destroyed by 8R-AWN with 8R-AWN's Boregun Performance ------------- Evolutions (0) 0 Regions Visited (3) 600 Robots Destroyed (29) 145 Value Destroyed (504) 504 Prototype IDs (23) 460 Alien Tech Used (0) 0 Bonus (35) 35 TOTAL SCORE: 1744 Bonus ------- Follower Combat Kills 141 Aligned with FarCom 300 Friendly Fire -406 Cogmind --------- Core Integrity 0/250 Matter 283/300 Energy 150/150 System Corruption 6% Temperature Cool (0) Movement Treading (200) Ox2 Location -10/Exiles Parts ------- > --- POWER (1) -------- Light Angular Momentum Engine > --- PROPULSION (2) --- Light Treads Light Treads > --- UTILITY (2) ------ Humpback > --- WEAPON (2) ------- (None) > --- INVENTORY (24) --- Ion Engine Light Treads Light Treads Light Treads Humpback Humpback Humpback High-capacity Battery (110) XL Autogun Array AWS/Autocannon EMP Blaster EMP Blaster Peak State ------------ > --- POWER ------------ Light Angular Momentum Engine > --- PROPULSION ------- Light Treads Light Treads > --- UTILITY ---------- Humpback > --- WEAPON ----------- Latent Energy Streamer Assault Rifle > --- INVENTORY -------- Light Nuclear Core Light Treads Light Treads Light Treads Light Treads Humpback Humpback Humpback High-capacity Matter Pod Improved Light Armor Plating Shock Rifle Light Assault Rifle XL Autogun Array AWS/Autocannon EMP Blaster EMP Blaster [Rating: 29] Favorites ----------- Power Light Angular Momentum Engine Engine Light Angular Momentum Engine Power Core Light Nuclear Core Propulsion Light Treads Treads Light Treads Utility Medium Storage Unit Storage Medium Storage Unit Weapon Assault Rifle Energy Gun EM Pulse Gun Energy Cannon Latent Energy Streamer Ballistic Gun Assault Rifle Launcher EMP Blaster Build | -11 -10 -10 -10 ------- Run | Scr Mat Min Exi Slots Evolved . | . . . . Power . | . . . . Propulsion . | . . . . Utility . | . . . . Weapon . | . . . . Parts Attached 35 | 7 7 7 14 Power 7 | 1 2 1 3 Engine 6 | 1 2 1 2 Core 1 | . . . 1 Reactor . | . . . . Propulsion 8 | 2 2 . 4 Treads 8 | 2 2 . 4 Leg . | . . . . Wheel . | . . . . Hover . | . . . . Flight . | . . . . Utility 7 | 2 2 . 3 Device . | . . . . Storage 7 | 2 2 . 3 Processor . | . . . . Hackware . | . . . . Protection . | . . . . Artifact . | . . . . Weapon 13 | 2 1 6 4 Energy Gun 2 | 1 . . 1 Energy Cannon 2 | . . . 2 Ballistic Gun 5 | 1 1 3 . Ballistic Cannon . | . . . . Launcher 4 | . . 3 1 Special Weapon . | . . . . Impact Weapon . | . . . . Slashing Weapon . | . . . . Piercing Weapon . | . . . . Special Melee Weapon . | . . . . Unidentified Prototypes . | . . . . Parts Lost 7 | . 1 . 6 Power 2 | . . . 2 Propulsion 1 | . . . 1 Utility . | . . . . Weapon 4 | . 1 . 3 Highest Loss Streak 3 | . 1 . 3 Average Slot Usage (%) 93 | . 100 100 83 Engine 13 | . 14 14 12 Treads 27 | . 28 28 27 Storage 22 | . 28 28 14 Energy Gun 3 | . 9 . 1 Energy Cannon 2 | . . . 5 Ballistic Gun 20 | . 18 22 19 Launcher 1 | . . 5 . Naked Turns . | . . . . Heaviest Build 101 | 15 24 31 101 Greatest Support 40 | 40 40 40 40 Greatest Overweight (x) 4 | . . . 4 Average Overweight (x) . | . . . 1 Largest Inventory Capacity 24 | 8 12 12 24 Average Capacity 15 | 6 9 12 22 Most Carried 24 | 6 12 12 24 Average Carried 12 | 3 8 11 17 Final Capacity 24 | 8 12 12 24 Final Carried 20 | 6 12 12 20 Class Distribution -------------------- 49% | Mutant 36% | Hauler-Mutant 14% | Scavenger-Mutant Dominant Class ---------------- Mutant | -10/Materials Mutant | -10/Mines Hauler-Mutant | -10/Exiles Resources | -11 -10 -10 -10 ----------- Run | Scr Mat Min Exi Matter Collected 787 | 269 243 121 154 Remotely . | . . . . Salvage Created 1002 | 57 468 376 101 Parts 61 | 2 29 26 4 Haulers Intercepted 2 | . 2 . . Recyclers Shooed . | . . . . Parts Field Recycled . | . . . . Retrieved Matter . | . . . . Parts Self-Destructed . | . . . . Prevented . | . . . . Kills | -11 -10 -10 -10 ------- Run | Scr Mat Min Exi Combat Hostiles Destroyed 19 | . 12 7 . Guns 12 | . 12 . . AOE 7 | . . 7 . Classes Destroyed 8 | 1 4 3 . Worker 1 | . . 1 . Builder 1 | . . 1 . Hauler 2 | . 2 . . Recycler 2 | 1 . 1 . Mechanic 1 | . . 1 . Operator 1 | . 1 . . Swarmer 9 | . 6 3 . Grunt 11 | . 6 4 1 Thug 1 | . . . 1 Best Kill Streak 5 | 1 5 5 . Combat Bots Only 4 | . 4 4 . Max Kills in Single Turn 3 | 1 1 3 2 Gunslinging . | . . . . Exploded 3 | . . 3 . Melee . | . . . . Uniques/NPCs Destroyed . | . . . . Combat | -11 -10 -10 -10 -------- Run | Scr Mat Min Exi Damage Taken 1755 | . 411 134 1210 Core 250 | . 57 24 169 Absorbed by Shields . | . . . . Core Remaining (%) 100 | 100 . . . Volleys Fired 84 | 2 51 13 18 Largest 2 | 2 2 2 2 Hottest 110 | 60 60 40 110 Shots Fired 159 | 4 102 22 31 Gun 152 | 4 102 19 27 Cannon 3 | . . . 3 Launcher 4 | . . 3 1 Special . | . . . . Kinetic 104 | 2 69 19 14 Thermal . | . . . . Explosive . | . . . . Electromagnetic 55 | 2 33 3 17 Robot Hit Streak 12 | 3 9 5 12 Robot Miss Streak 3 | . 3 1 2 Penetration Max . | . . . . Secondary Targets 1 | . 1 . . Max Gunslinging Chain 1 | . 1 . . Shots Hit Robots 107 | 3 70 14 20 Core Hits 49 | 2 24 16 7 Critical Hits 1 | . . . 1 Critical Kills . | . . . . Critical Parts Destroyed . | . . . . Melee Attacks . | . . . . Impact . | . . . . Slashing . | . . . . Piercing . | . . . . Sneak Attacks . | . . . . Combat Hostiles . | . . . . Follow-up Attacks . | . . . . Damage Inflicted 1739 | 40 852 470 377 Guns 1135 | 40 852 145 98 Cannons . | . . . . Explosions 531 | . . 325 206 Melee . | . . . . Ramming 73 | . . . 73 Kinetic 777 | 10 534 145 88 Thermal 131 | . . 131 . Explosive . | . . . . Electromagnetic 758 | 30 318 194 216 Impact . | . . . . Slashing . | . . . . Piercing . | . . . . Highest Corruption 6 | . . 1 6 Average Corruption 1 | . . 1 1 Corruption Purged . | . . . . Effects 16 | . . 5 11 Message Errors 7 | . . 2 5 Data Loss (minor) 9 | . . 3 6 Overload Shots . | . . . . Overflow Damage 2 | . . . 2 Projectiles . | . . . . Explosions . | . . . . Melee 2 | . . . 2 Knockbacks . | . . . . Impact . | . . . . Kinetic . | . . . . Secondary . | . . . . Self-Inflicted Damage 56 | . . 56 . Shots 3 | . . 3 . Rammed 11 | . . . 11 Targets Rammed 11 | . . . 11 Kicked . | . . . . Crushed . | . . . . Highest Temperature 162 | . 45 23 162 Average Temperature 38 | . 15 5 79 Received Heat Transfer 207 | . 186 21 . Siege Activations . | . . . . Robots Corrupted . | . . . . Combat Hostiles . | . . . . Parts Fried 1 | . 1 . . Impact Corruptions 1 | . . . 1 Robots Melted . | . . . . Combat Hostiles . | . . . . Parts Melted . | . . . . Heat Transferred 200 | . . 200 . Parts Sabotaged . | . . . . Parts Stolen . | . . . . Parts Stripped . | . . . . Power Chain Reactions 3 | . . 3 . Missiles Intercepted . | . . . . Latent Energy Used 214 | . . . 214 LE Corruption 5 | . . . 5 Alert | -11 -10 -10 -10 ------- Run | Scr Mat Min Exi Peak Influence 250 | 5 215 250 . Initial 3 | . 3 . . Average 80 | 1 57 112 . Maximum Alert Level 1 | . 1 1 . Low Security (%) 91 | 100 90 92 . Level 1 8 | . 9 7 . Level 2 . | . . . . Level 3 . | . . . . Level 4 . | . . . . Level 5 . | . . . . High Security . | . . . . Max Security . | . . . . Squads Dispatched 4 | . 2 2 . Investigation 1 | . . 1 . Extermination . | . . . . Reinforcement 2 | . 2 . . Assault 1 | . . 1 . Garrison . | . . . . Intercept . | . . . . Construction Impeded . | . . . . Haulers Reinforced . | . . . . Stealth | -11 -10 -10 -10 --------- Run | Scr Mat Min Exi Distress Signals 1 | . 1 . . Communications Jammed . | . . . . Distress Signals . | . . . . Times Spotted 34 | . 18 14 2 Peak Tracking Total 9 | . 4 5 9 Tactical Retreats 2 | . 2 . . Traps | -11 -10 -10 -10 ------- Run | Scr Mat Min Exi Traps Triggered . | . . . . Indirectly . | . . . . Trap Hack Attempts . | . . . . Triggered . | . . . . Disarmed . | . . . . Reprogrammed . | . . . . Reused . | . . . . Traps Extracted . | . . . . Installed . | . . . . Triggered . | . . . . Exploded 3 | . . . 3 Machines | -11 -10 -10 -10 ---------- Run | Scr Mat Min Exi Machines Disabled 3 | . . 1 2 Max in Single Turn 1 | . . 1 1 Machines Sabotaged . | . . . . Garrisons Compromised . | . . . . Overloaded Fab Kills . | . . . . Fab Network Shutdowns . | . . . . Hacking | -11 -10 -10 -10 --------- Run | Scr Mat Min Exi Machines Accessed 8 | . 5 1 2 Terminals 5 | . 5 . . Fabricators . | . . . . Repair Stations . | . . . . Recycling Units . | . . . . Scanalyzers . | . . . . Garrison Access . | . . . . Total Hacks 22 | . 19 1 2 Successful 14 | . 11 1 2 Failed 8 | . 8 . . Catastrophic 2 | . 2 . . Database Lockouts . | . . . . Manual 15 | . 14 . 1 Terminals 19 | . 19 . . Fabricators . | . . . . Repair Stations . | . . . . Recycling Units . | . . . . Scanalyzers . | . . . . Garrison Access . | . . . . Terminal Hacks 11 | . 8 1 2 Record 1 | . . . 1 Part Schematic 1 | . 1 . . Open Door 1 | . . 1 . Locate Traps 2 | . 2 . . Dispatch Records 1 | . 1 . . Recall Reinforcements 1 | . 1 . . Hauler Manifests 1 | . 1 . . Zone Layout 2 | . 2 . . EX-Prototype ID Bank 1 | . . . 1 Fabricator Hacks . | . . . . Repair Station Hacks . | . . . . Recycling Unit Hacks . | . . . . Scanalyzer . | . . . . Garrison Access Hacks . | . . . . Unauthorized Hacks 3 | . 3 . . Terminals 3 | . 3 . . Track 3 | . 3 . . Fabricators . | . . . . Repair Stations . | . . . . Recycling Units . | . . . . Scanalyzers . | . . . . Garrison Access . | . . . . Data Cores Recovered . | . . . . Used . | . . . . Hacking Detections 5 | . 5 . . Full Trace Events . | . . . . Feedback Events . | . . . . Feedback Blocked . | . . . . Robot Schematics Acquired . | . . . . Robots Built . | . . . . Matter . | . . . . Time . | . . . . Total Robot Build Rating . | . . . . Part Schematics Acquired 1 | . 1 . . Parts Built . | . . . . Matter . | . . . . Time . | . . . . Total Part Build Rating . | . . . . Parts Repaired . | . . . . Time . | . . . . Parts Recycled . | . . . . Recycled Matter . | . . . . Retrieved Matter . | . . . . Retrieved Components . | . . . . Parts Scanalyzed . | . . . . Part Schematics Acquired . | . . . . Parts Damaged . | . . . . Bothacking | -11 -10 -10 -10 ------------ Run | Scr Mat Min Exi Used RIF Installer . | . . . . Robots Hacked . | . . . . Non-combat . | . . . . Combat . | . . . . Robot Hacks Applied . | . . . . Relay Couplers Released . | . . . . Robots Rewired . | . . . . Allies Hacked . | . . . . Hacks Repelled . | . . . . Allies | -11 -10 -10 -10 -------- Run | Scr Mat Min Exi Total Allies 5 | . . 5 . Largest Group 4 | . . 4 4 Highest-Rated Group 86 | . . 86 86 Highest-Rated Ally 31 | . . 31 31 Total Orders 1 | . . . 1 STAY 1 | . . . 1 Ally Attacks 96 | . . 31 65 Total Damage 515 | . . 364 151 Kills 12 | . . 8 4 Allies Corrupted . | . . . . Allies Melted . | . . . . Intel | -11 -10 -10 -10 ------- Run | Scr Mat Min Exi Robot Analysis Total . | . . . . Derelict Logs Recovered 1 | . . 1 . Drone Launches . | . . . . Drone Recoveries . | . . . . Exploration | -11 -10 -10 -10 ------------- Run | Scr Mat Min Exi Turns Passed 4011 | 97 1208 1122 1584 Spaces Moved 2082 | 52 633 666 731 Core 7 | 7 . . . Treads 2075 | 45 633 666 731 Legs . | . . . . Wheels . | . . . . Hover . | . . . . Flight . | . . . . Fastest Speed 50 | 50 160 160 160 Average Speed 171 | 145 160 160 194 Slowest Speed 240 | 160 160 160 240 Overloaded Moves . | . . . . Propulsion Burnouts . | . . . . Robots Hopped . | . . . . Cave-ins Triggered . | . . . . Exploration Rate (%) 68 | 4 82 99 89 Regions Visited 3 Branch Regions 2 Pre-discovered Areas 1 | . . . 1 Known Exits Taken . | . . . . Unknown Exits Taken 3 | 1 1 1 . Scrap Searched 1 | . . 1 . Spaces Dug 3 | . . 3 . Terrain Destroyed 32 | . . 10 22 Melee . | . . . . Projectile . | . . . . AOE 32 | . . 10 22 Terrain Rammed . | . . . . Walls Destroyed . | . . . . Machines Disabled . | . . . . Actions | -11 -10 -10 -10 --------- Run | Scr Mat Min Exi Total 2361 | 66 737 703 855 Wait 60 | . 19 7 34 Move 2079 | 51 632 665 731 Hop . | . . . . Pick Up 56 | 6 15 5 30 Fast Attach 14 | 7 . . 7 Attach 2 | . 1 . 1 Detach 1 | . . . 1 Swap 19 | . 6 7 6 Drop 35 | . 13 6 16 Fire 84 | 2 51 13 18 Melee . | . . . . Ram . | . . . . Kick . | . . . . Crush 11 | . . . 11 Escape Stasis . | . . . . Rewire . | . . . . Trap . | . . . . Miscellaneous . | . . . . Route ------- -11/Scrapyard -10/Materials (discovered 4 exits: [*Mat x3] / *Min) -10/Mines (discovered 3 exits: [*Mat x2] / *Exi) -10/Exiles (discovered 1 exit: [*Min]) History --------- Turn | Location | Event 53 | -11/Scrapyard | Discovered new exit (range 15) 98 | -11/Scrapyard | Entered Materials 310 | -10/Materials | Build established: Mutant 342 | -10/Materials | Discovered new exit (range 10) 504 | -10/Materials | Discovered new exit (range 3) 1067 | -10/Materials | Discovered new exit (range 15) 1166 | -10/Materials | Discovered new exit (range 9) 1306 | -10/Materials | Entered Mines 1413 | -10/Mines | Assisted by bots powering up and referring to "LRC-V3" 1546 | -10/Mines | Met a Derelict shopkeep closing up shop 1697 | -10/Mines | Discovered new exit (range 15) 1712 | -10/Mines | Discovered new exit (range 9) 1714 | -10/Mines | Met a Derelict testing a Signal Generator 1733 | -10/Mines | Found Signal Generator 1931 | -10/Mines | Learned 2 Materials zone layouts 1952 | -10/Mines | Deemed a non-threat by the Exiles lab entrance 2044 | -10/Mines | Escorted by a lone wolf Derelict 2169 | -10/Mines | Discovered new exit (range 7) 2428 | -10/Mines | Entered Exiles 2428 | -10/Exiles | Accompanied by 4 allies 2467 | -10/Exiles | Met 8R-AWN 2492 | -10/Exiles | Met EX-HEX 2648 | -10/Exiles | Met EX-DEC 2689 | -10/Exiles | Visited The Gauntlet 2860 | -10/Exiles | Build established: Hauler-Mutant 2900 | -10/Exiles | Learned location of Zion (-6) 3031 | -10/Exiles | Discovered new exit (range 12) 3147 | -10/Exiles | Met EX-BIN 3203 | -10/Exiles | Aligned with FarCom system 3205 | -10/Exiles | Given EX-Vault access code 3251 | -10/Exiles | Opened EX-Vault 3266 | -10/Exiles | Found Latent Energy Streamer 3273 | -10/Exiles | Found XL Autogun Array 3284 | -10/Exiles | Found AWS/Autocannon 3328 | -10/Exiles | Warned to stay clear of 0b10 Research branches 3743 | -10/Exiles | Attacked by the Exiles 3881 | -10/Exiles | Core integrity fell below 50% 3978 | -10/Exiles | Lost 3 parts (1p1n1w) 4000 | -10/Exiles | Core integrity fell below 20% 4012 | -10/Exiles | Destroyed by 8R-AWN with 8R-AWN's Boregun Last Messages --------------- 03995_ HV Slug penetrates Wall. 03995_ Penetrated by HV Slug. 03995_ HV Slug penetrates Wall. 03997_ Acquired Humpback. 03999_ Penetrated by HV Slug. 03999_ HV Slug penetrates Earth. 03999_ HV Slug penetrates Wall. 03999_ HV Slug penetrates Earth. 04000_ Acquired Ion Engine. 04003_ Penetrated by HV Slug. 04003_ HV Slug penetrates Earth. 04003_ HV Slug penetrates Wall. 04008_ Penetrated by HV Slug. 04008_ HV Slug penetrates Wall. 04008_ Penetrated by HV Slug. 04008_ HV Slug penetrates Wall. 04009_ Acquired 3 matter. 04012_ Penetrated by HV Slug. 04012_ HV Slug penetrates Wall. 04012_ Penetrated by HV Slug. Map ----- +----------------------------------------------------+ | ?????????????????????????????????????????????????? | | ?????????????????????????????????????????????????? | | ?????????????????????????????????????????????????? | | ?????????????????????????????????????????????????? | | ?????????????????????????????????????????????????? | | ???????????####??????????????????????????????????? | | ??????????## #?????????????????????????????????? | | ??????????# ?????????????????????????????????? | | ??????????# < ?????????????????????????????????? | | ??????????# #????????????????????????????????? | | ??????????# ????????????????????????????????? | | ??????????# ????????????????????????????????? | | ???????????# ????????????????????????????????? | | ???????????# ##??????????????????????????????? | | ????????????# #????????????#######???????????? | | ????????????# #######??????# ! "#???????????? | | ????????????# #""##?????# ! "#???????????? | | ?????????????# #?????# "#???????????? | | ?????????????##" ##???## ""#???????????? | | ?????????????#"" #####" ""#???????????? | | ?????????????#### ##" ""#???????????? | | ????????????????## #"" ###???????????? | | ?????????????????#"## #?????????????? | | ?????????????????######; ##????????????? | | ???????????????##???## ;;; ##??????????? | | ??????????????## ####; ; @ g ;##??????????? | | ????????????# # #; ! % % ##?????????? | | ???????###### ; ! %= %%%;; %% ;;####???## | | ???????# ;! % = %%; # """#####X | | ???????## ;! % ;## ; %% | | ???????# ; ! ##?#;"# % | | ??????# # #;#;;; #???#### | | ??????## ##?####?# # #??????### | | ?????????????????# ## ####????????### | | ?????????????????#####?# #?????????????## | | ???????????????????????###??????????????## | | ?????????????????????????????????????????##" | | ??????????????????????????????????????????#" | | ?????????????????????????????????????????##" | | ?????????????????????????????????????????#"" | | ?????????????????????????????????????????#""" | | ????????????????????????????????????????#""" | | ????????????????????????????????????????#""" | | ????????????????????????????????????????#"" | | ????????????????????????????????????????#""" | | ????????????????????????????????????????#"" | | ????????????????????????????????????????##"" | | ?????????????????????????????????????????#"""" | | ?????????????????????????????????????????## | | ??????????????????????????????????????????#" | +----------------------------------------------------+ Best States ------------- Heat Dissipation 25 Energy Generation 18 Energy Capacity 560 Matter Stores 300 Matter Capacity 300 Sight Range 16 Terrain Scan Density 10 Evasion (%) 40 Recoil Reduction 2 Item Schematics ----------------- Hcp. Storage Unit | -10/Materials | Hacked Robot Schematics ------------------ None Fabricated ------------ Nothing Alien Tech Used ----------------- None Achievements -------------- None Challenges ------------ None Game ------ Seed StructuralSmartbombHammer Manual? 0 Play Time 00:23:28 Cumulative 223.8 hours Start 2020.10.26 @ 15:22:34 End 2020.10.26 @ 15:46:22 Sessions 1 Manual Loads 0 Difficulty Rogue Special Mode None Game No. 96 Rogue 96 Adventurer 0 Explorer 0 Win Type - Total 5 Types 3/0/1/1/0/0/0/0/0 Lore% 52 Gallery% 83 Achievement% 63 Wizard Run 0 Options --------- ASCII 0 Keyboard 0 Movement Numpad Keybinds 0 Fullscreen 1 Font 18/SmallcapsGlow Map View 76x50 Tactical HUD 1 Map Filters NONE Filters NONE Steam 1 RUN: e0b62397-d081-46c5-b6e1-10fcf242abbf